bitfinex/quotes_ETHUSD_20250821
["timestamp","ask_amount","ask_price","bid_price","bid_amount"]
[1755741502155,3.0,4343.5,4342.8,0.02]
[1755741502356,20.93101029,4343.2,4342.8,0.02]
[1755741502590,3.0,4343.1,4342.8,0.02]
[1755741502754,0.66,4343.0,4342.8,0.02]
[1755741502960,3.572,4342.9,4342.8,0.02]
[1755741505360,28.16301029,4342.9,4342.8,0.02]
[1755741506174,28.7866827,4342.9,4342.8,0.02]
[1755741506481,29.00128647,4342.9,4342.8,0.02]
[1755741507674,3.66,4342.8,4341.8,0.02]
[1755741508015,59.00128647,4342.9,4341.8,0.02]
[1755741508016,24.59101029,4341.9,4341.8,0.02]
[1755741508187,28.16301029,4341.9,4341.8,0.02]
[1755741509166,7.9685429,4341.9,4341.8,0.02]
[1755741509403,28.40541806,4341.9,4341.8,0.02]
[1755741509909,59.11315837,4341.9,4341.8,0.02]
[1755741510083,24.59101029,4341.0,4340.9,0.001]
[1755741510407,28.16201029,4341.0,4340.9,0.001]
[1755741511110,58.16201029,4341.0,4340.9,0.001]
[1755741511273,21.59101029,4340.0,4339.9,0.001]
[1755741511589,28.16201029,4340.0,4339.9,0.001]
[1755741511791,24.70621029,4340.0,4339.9,0.001]
[1755741512113,28.27821029,4340.0,4339.9,0.001]
[1755741512412,28.27921029,4340.0,4339.9,0.001]
[1755741512618,24.70621029,4340.0,4339.9,0.001]
[1755741512777,28.27821029,4340.0,4339.9,0.001]
[1755741518319,28.27521029,4340.0,4339.9,0.001]
[1755741522104,24.70621029,4340.0,4339.9,0.001]
[1755741522449,3.1152,4340.0,4339.9,0.7626]
[1755741522633,6.6812,4340.0,4339.9,0.7626]
[1755741522833,27.61221029,4340.0,4339.9,0.7626]
[1755741523349,6.6822,4340.0,4339.9,0.7626]
[1755741525566,6.6802,4340.0,4339.9,0.7626]
[1755741526652,6.6802,4340.0,4339.9,0.001]
[1755741528557,7.3382,4340.0,4339.9,0.001]
[1755741528850,3.1152,4340.0,4339.9,0.7626]
[1755741529053,6.6782,4340.0,4339.9,0.7626]
[1755741529221,6.6792,4340.0,4339.9,0.7626]
[1755741529669,0.1152,4340.0,4339.9,0.7626]
[1755741530020,3.6782,4340.0,4339.9,0.7626]
[1755741530223,0.1152,4340.0,4339.9,0.7626]
[1755741530453,3.6782,4340.0,4339.9,0.7626]
[1755741531535,0.1152,4340.0,4339.9,0.7626]
[1755741531863,3.6772,4340.0,4339.9,0.7626]
[1755741532558,0.1152,4340.0,4339.9,0.7626]
[1755741532855,3.6772,4340.0,4339.9,0.7626]
[1755741536361,7.04492,4340.0,4339.9,0.001]
[1755741536551,7.54243166,4340.0,4339.9,0.001]
[1755741537665,7.88774928,4340.0,4339.9,0.001]
[1755741538440,8.54774928,4340.0,4339.9,0.001]
[1755741538638,8.54799786,4340.0,4339.9,0.001]
[1755741540331,4.98599786,4340.0,4339.9,0.001]
[1755741540563,8.54399786,4340.0,4339.9,0.001]
[1755741541633,8.32801898,4340.0,4339.9,0.001]
[1755741541841,8.5440868,4340.0,4339.9,0.001]
[1755741543552,8.5440868,4340.0,4339.9,0.2966]
[1755741543783,7.5133668,4340.0,4339.9,0.7626]
[1755741543942,3.6702,4340.0,4339.9,0.7626]
[1755741544649,0.1152,4340.0,4339.9,0.7626]
[1755741544850,3.6712,4340.0,4339.9,0.7626]
[1755741545363,3.556,4340.0,4339.9,0.7626]
[1755741545564,3.6712,4340.0,4339.9,0.7626]
[1755741545767,3.5212,4340.0,4339.9,0.7626]
[1755741546077,0.1152,4340.0,4339.9,0.7626]
[1755741555495,0.1152,4340.0,4339.9,0.2966]
[1755741555799,21.04621029,4340.0,4339.9,0.001]
[1755741556795,0.1152,4340.0,4339.9,0.001]
[1755741557311,3.6682,4340.0,4339.9,0.7381]
[1755741557475,3.6682,4340.0,4339.9,0.001]
[1755741558578,3.6672,4340.0,4339.9,0.7381]
[1755741560272,3.6662,4340.0,4339.9,0.7381]
[1755741561680,3.6662,4340.0,4339.9,0.001]
[1755741562498,3.6652,4340.0,4339.9,0.7381]
[1755741563387,0.1152,4340.0,4339.9,0.7381]
[1755741564692,0.002,4340.8,4339.9,0.7381]
[1755741564890,0.1152,4340.0,4339.9,0.2975]
[1755741565625,0.1172,4340.0,4339.9,0.7381]
[1755741566019,0.1172,4340.0,4339.9,0.001]
[1755741566716,0.48392,4340.0,4339.9,0.001]
[1755741566914,0.1172,4340.0,4339.9,0.001]
[1755741567695,0.1172,4340.0,4339.9,0.7381]
[1755741568497,0.1172,4340.0,4339.9,0.001]
[1755741569019,0.662,4340.0,4339.9,0.001]
[1755741569225,3.662,4340.0,4339.9,0.001]
[1755741570390,4.50498885,4340.0,4339.9,0.001]
[1755741572522,8.05398885,4340.0,4339.9,0.001]
[1755741573599,4.50498885,4340.0,4339.9,0.001]
[1755741573794,6.551,4340.0,4339.9,0.2975]
[1755741574036,6.551,4340.0,4339.9,0.7381]
[1755741574193,0.002,4340.0,4339.9,0.7381]
[1755741579130,0.1172,4340.0,4339.9,0.7381]
[1755741579332,0.1172,4340.0,4339.9,0.2975]
[1755741579512,0.1172,4340.0,4339.9,0.7381]
[1755741581400,0.002,4340.0,4339.9,0.7381]
[1755741581838,0.002,4340.5,4339.9,0.7381]
[1755741582026,0.002,4340.8,4340.3,20.93101029]
[1755741582334,0.1152,4340.7,4340.4,2.09310103]
[1755741582634,0.002,4340.5,4340.4,2.09310103]
[1755741582932,0.002,4340.5,4340.4,2.40170103]
[1755741583234,0.002,4340.5,4340.4,2.84040103]
[1755741583632,0.002,4340.5,4340.4,0.7473]
[1755741584721,0.002,4340.5,4340.4,21.79351029]
[1755741586411,0.002,4340.5,4340.4,4.4285]
[1755741587143,0.002,4340.5,4340.4,0.8625]
[1755741587331,0.1172,4340.5,4340.4,4.3123]
[1755741587728,0.1172,4340.5,4340.4,4.74353]
[1755741588245,0.1172,4340.5,4340.4,4.76656935]
[1755741588610,0.1172,4340.5,4340.4,4.74353]
[1755741588812,0.1172,4340.5,4340.4,4.74253]
[1755741589026,0.1172,4340.5,4340.4,4.3113]
[1755741589845,0.1172,4340.5,4340.2,0.1172]
[1755741589846,0.1172,4340.5,4340.0,0.4387]
[1755741590039,0.1172,4340.5,4340.1,0.4387]
[1755741590239,0.002,4340.5,4340.1,0.4387]
[1755741590440,0.1152,4340.2,4340.0,3.563]
[1755741590617,0.1152,4340.2,4340.1,0.3086]
[1755741591240,0.1152,4340.2,4340.0,3.563]
[1755741591648,0.1152,4340.2,4339.9,0.001]
[1755741591833,0.1152,4340.2,4340.0,0.4387]
[1755741592866,0.002,4340.5,4340.1,0.7473]
[1755741593168,0.002,4340.5,4340.3,20.93101029]
[1755741593461,0.002,4340.5,4340.4,0.33163935]
[1755741593817,0.002,4340.5,4340.4,0.7473]
[1755741594267,0.002,4340.5,4340.4,0.77033935]
[1755741594511,0.1172,4340.5,4340.4,3.13247898]
[1755741596222,0.1172,4340.5,4340.4,3.10943963]
[1755741596726,0.1172,4340.5,4340.4,4.3263]
[1755741597265,0.1172,4340.5,4340.4,0.7473]
[1755741597434,0.1172,4340.5,4340.4,4.3263]
[1755741598353,0.1172,4340.5,4340.4,0.7473]
[1755741598521,0.1172,4340.5,4340.4,4.3253]
[1755741598870,0.1172,4340.5,4340.0,0.40237]
[1755741599025,0.0342,4340.5,4339.9,0.001]
[1755741599220,0.1152,4340.1,4339.9,3.577]
[1755741600117,0.1152,4340.1,4339.9,0.001]
[1755741600325,0.0523,4340.0,4339.9,0.001]
[1755741600954,0.0322,4340.0,4339.9,0.001]
[1755741601753,0.1152,4340.0,4339.9,0.7483]
[1755741602323,0.1152,4340.0,4339.9,0.001]
[1755741602525,3.1675,4340.0,4339.9,0.001]
[1755741602737,0.1474,4340.0,4339.9,0.001]
[1755741603226,0.8275,4340.0,4339.9,0.001]
[1755741607660,0.0322,4340.0,4339.9,0.001]
[1755741608859,6.57,4340.4,4339.9,0.001]
[1755741609066,3.57,4340.3,4339.9,0.001]
[1755741609241,0.3572,4340.2,4339.9,0.001]
[1755741609768,0.002,4340.5,4339.9,0.001]
[1755741609769,0.002,4340.5,4340.1,0.3086]
[1755741609942,0.002,4340.5,4340.2,0.4387]
[1755741610266,0.002,4340.5,4340.4,0.3086]
[1755741610810,0.002,4340.5,4340.4,0.7473]
[1755741611272,0.002,4340.5,4340.0,0.4433]
[1755741611443,0.002,4340.5,4340.1,0.4433]
[1755741611775,0.002,4340.5,4340.4,0.3042]
[1755741611934,0.002,4340.5,4340.4,0.7475]
[1755741612781,0.002,4340.5,4339.9,0.001]
[1755741612947,3.0,4340.4,4339.9,0.001]
[1755741613138,0.0321,4340.0,4339.9,0.001]
[1755741613993,3.6921,4340.0,4339.9,0.001]
[1755741614194,0.6921,4340.0,4339.9,0.001]
[1755741614417,3.0221,4340.5,4339.9,0.001]
[1755741614418,0.66,4340.4,4339.9,0.001]
[1755741614616,0.49681798,4340.4,4339.9,0.001]
[1755741614819,3.002,4340.5,4339.9,0.001]
[1755741614820,3.0,4340.2,4339.9,0.001]
[1755741615325,0.0321,4340.0,4339.9,0.001]
[1755741616586,3.0,4340.2,4339.9,0.001]
[1755741616786,3.0,4340.0,4339.9,0.001]
[1755741617433,0.002,4340.2,4339.9,0.001]
[1755741617631,3.575,4340.0,4339.9,0.3052]
[1755741618199,3.575,4340.0,4339.9,0.7485]
[1755741618427,3.6902,4340.0,4339.9,0.7485]
[1755741618639,3.6902,4340.0,4339.9,0.001]
[1755741618991,4.05942,4340.0,4339.9,0.001]
[1755741619292,4.09152,4340.0,4339.9,0.001]
[1755741620092,4.05942,4340.0,4339.9,0.001]
[1755741620733,4.09152,4340.0,4339.9,0.001]
[1755741621699,0.1152,4340.0,4339.9,0.3052]
[1755741621899,0.002,4340.2,4339.9,0.7485]
[1755741622140,0.002,4340.2,4339.9,0.001]
[1755741622426,0.0321,4340.0,4339.9,0.001]
[1755741622811,0.002,4340.2,4339.9,0.001]
[1755741623099,0.002,4340.2,4340.1,0.3042]
[1755741623300,0.002,4340.2,4340.1,0.7475]
[1755741623815,0.002,4340.2,4340.1,0.3042]
[1755741624010,0.002,4340.2,4339.9,0.001]
[1755741624215,0.002,4340.2,4340.1,0.3042]
[1755741624432,0.002,4340.2,4340.1,0.7475]
[1755741626041,0.002,4340.5,4340.1,0.7475]
[1755741626297,0.002,4340.8,4340.2,0.46634041]
[1755741626447,0.002,4340.8,4340.7,0.3042]
[1755741627173,0.002,4340.8,4340.7,0.7475]
[1755741631886,0.002,4340.8,4340.7,0.8627]
[1755741632879,0.002,4340.8,4340.7,0.88573775]
[1755741634168,0.002,4340.9,4340.7,1.43053775]
[1755741634356,0.002,4340.9,4340.8,29.06560077]
[1755741634552,0.002,4340.9,4340.8,31.67352358]
[1755741638193,0.002,4341.3,4340.9,3.66]
[1755741638371,0.002,4341.3,4341.2,27.19872084]
[1755741638575,0.002,4341.3,4341.2,30.77572084]
[1755741638772,0.002,4341.3,4341.2,33.58116047]
[1755741638978,0.002,4341.7,4341.4,2.30338197]
[1755741639279,0.002,4341.7,4341.6,27.19850861]
[1755741639502,0.002,4341.7,4341.6,30.77550861]
[1755741639759,0.002,4341.7,4341.6,31.21880861]
[1755741640004,0.002,4341.7,4341.6,33.58094824]
[1755741642587,0.02,4343.8,4341.8,0.66]
[1755741642787,0.02,4343.8,4342.7,24.24111029]
[1755741643000,0.02,4343.8,4342.7,27.81511029]
[1755741643306,0.02,4343.8,4342.7,30.60924992]
[1755741643521,0.02,4343.8,4342.7,30.70155392]
[1755741643817,0.02,4343.8,4342.7,33.66426882]
[1755741643981,0.02,4343.8,4342.9,0.66]
[1755741644183,0.02,4343.8,4343.7,24.24111029]
[1755741644383,0.02,4343.8,4343.7,30.29316859]
[1755741644585,0.02,4343.8,4343.7,31.50036859]
[1755741644780,0.02,4343.8,4343.7,10.5693583]
[1755741644983,0.02,4343.8,4343.7,4.69117353]
[1755741645182,0.02,4343.8,4343.7,4.50029088]
[1755741645418,0.02,4343.8,4343.7,8.10031272]
[1755741645621,0.02,4343.8,4343.7,10.37947565]
[1755741645804,0.02,4344.8,4343.8,3.66]
[1755741646007,0.02,4344.8,4344.7,24.90111029]
[1755741646210,0.02,4345.8,4344.9,0.66]
[1755741646386,0.02,4345.8,4345.5,0.1152]
[1755741646722,0.02,4345.8,4345.6,3.585]
[1755741646890,0.0385,4345.7,4345.4,20.93101029]
[1755741647091,0.0385,4345.7,4345.5,3.585]
[1755741647300,0.02,4345.8,4345.6,0.3101]
[1755741647497,0.02,4345.8,4345.7,0.02301125]
[1755741647698,0.02,4345.8,4345.7,0.33311125]
[1755741647898,0.02,4345.8,4345.7,1.54031125]
[1755741648112,0.0585,4345.8,4345.7,0.1152]
[1755741648493,0.0826,4345.8,4345.7,0.1152]
[1755741648691,0.0826,4345.8,4345.4,3.601]
[1755741648692,0.0585,4345.8,4345.5,0.02301231]
[1755741648900,0.02,4345.8,4345.5,20.9540226]
[1755741649101,0.02,4345.8,4345.4,3.601]
[1755741649292,0.0385,4345.6,4345.5,3.604]
[1755741649519,0.0626,4345.6,4345.2,3.606]
[1755741649724,0.0385,4345.6,4345.2,3.606]
[1755741650022,0.0241,4345.5,4345.1,3.606]
[1755741650223,0.02,4345.8,4344.1,0.432]
[1755741650224,0.0385,4345.2,4344.1,0.432]
[1755741650541,0.0385,4345.2,4344.2,3.605]
[1755741650899,0.02,4345.8,4345.1,0.3101]
[1755741651131,0.02,4345.8,4345.2,24.53601029]
[1755741651422,0.02,4345.8,4345.3,3.606]
[1755741651728,0.02,4345.8,4345.7,0.3101]
[1755741651926,0.02,4345.8,4345.7,3.9161]
[1755741652127,0.02,4345.8,4345.7,6.27823963]
[1755741652318,0.02,4345.8,4345.7,6.71023963]
[1755741652720,0.02,4345.8,4345.7,4.3501]
[1755741653456,0.02,4345.8,4345.7,7.3501]
[1755741653626,0.02,4345.8,4345.7,28.28111029]
[1755741653938,0.02,4345.8,4345.7,7.3501]
[1755741655233,0.02,4345.8,4345.7,8.0101]
[1755741655435,0.02,4345.8,4345.7,8.81111]
[1755741655635,0.02,4345.8,4345.7,11.36173525]
[1755741655936,0.002,4346.3,4346.0,2.3009648]
[1755741656107,0.002,4346.3,4346.2,3.9701]
[1755741656507,0.002,4346.3,4346.2,6.70296052]
[1755741656727,0.002,4346.3,4346.2,9.06510015]
[1755741657137,0.002,4346.3,4346.2,26.52172918]
[1755741657341,0.002,4346.3,4346.2,11.99479421]
[1755741657506,0.002,4346.3,4346.2,8.97765458]
[1755741658205,0.002,4346.3,4346.2,6.01865458]
[1755741658407,0.002,4346.3,4346.2,11.9385151]
[1755741658602,0.002,4346.3,4346.2,9.63765458]
[1755741658910,0.002,4346.3,4346.2,9.75285458]
[1755741659243,0.002,4346.3,4346.2,10.9582313]
[1755741659429,0.002,4346.3,4346.2,13.25909182]
[1755741659642,0.002,4346.3,4346.2,29.09916627]
[1755741659938,0.002,4346.3,4346.2,26.79830575]
[1755741660246,0.002,4346.3,4346.2,6.6792313]
[1755741660447,0.002,4346.3,4346.2,2.04185458]
[1755741660650,0.002,4346.3,4346.2,5.23355458]
[1755741660859,0.002,4346.3,4346.2,5.87560658]
[1755741661008,0.002,4346.3,4346.2,8.97565458]
[1755741661402,0.002,4346.3,4346.2,4.61655458]
[1755741661640,0.002,4346.3,4346.2,3.79355458]
[1755741661641,0.0405,4346.3,4346.2,3.79355458]
[1755741662144,0.002,4346.3,4346.2,3.617]
[1755741662361,0.002,4346.3,4346.2,3.6400086]
[1755741662758,0.0405,4346.3,4346.2,3.617]
[1755741663363,0.0646,4346.3,4345.7,0.2495]
[1755741663669,0.0646,4346.3,4344.6,0.432]
[1755741663670,15.84007445,4346.1,4345.6,3.617]
[1755741663827,15.84007445,4346.1,4345.5,3.617]
[1755741663828,0.0385,4345.7,4345.5,3.617]
[1755741664166,0.0385,4345.7,4345.6,3.617]
[1755741665828,0.0385,4345.7,4344.9,0.432]
[1755741665829,0.0626,4345.7,4345.3,3.617]
[1755741666156,15.84007445,4345.4,4344.8,0.02]
[1755741666367,0.0385,4344.9,4344.8,0.02]
[1755741666764,3.0385,4344.9,4344.8,0.02]
[1755741666923,3.0385,4344.9,4344.8,0.021]
[1755741667762,3.0,4345.9,4344.8,4.3781]
[1755741667970,15.84007445,4346.4,4344.9,0.46082548]
[1755741668140,15.79207445,4346.4,4344.9,0.89282548]
[1755741668337,15.86007445,4346.8,4345.0,0.66]
[1755741668557,15.86007445,4346.8,4345.0,1.092]
[1755741668769,15.86007445,4346.8,4345.1,0.432]
[1755741668986,0.02,4346.8,4345.2,4.070981]
[1755741669127,0.02,4346.8,4345.3,0.02301337]
[1755741669533,0.02,4346.8,4345.4,0.432]
[1755741669763,0.02,4346.8,4345.5,0.68301231]
[1755741670289,0.02,4346.8,4346.6,0.3101]
[1755741670452,0.02,4346.8,4346.6,3.9291]
[1755741670647,0.02,4346.8,4346.6,4.4763]
[1755741670846,0.02,4346.8,4346.6,4.92393]
[1755741671559,0.02,4346.8,4346.6,5.016154]
[1755741673079,0.02,4346.8,4346.6,8.14688134]
[1755741673247,0.02,4346.8,4346.6,11.03168134]
[1755741673449,0.02,4346.8,4346.6,11.14688134]
[1755741674766,0.02,4346.8,4346.6,7.52788134]
[1755741674973,0.02,4346.8,4346.6,11.14488134]
[1755741675173,0.02,4346.8,4346.6,5.22723256]
[1755741675482,0.02,4346.8,4346.6,3.99350256]
[1755741676060,0.02,4346.8,4346.6,4.43970256]
[1755741676279,0.02,4346.8,4346.6,0.37750256]
[1755741676463,0.02,4346.8,4345.7,0.4462]
[1755741676665,0.02,4346.8,4346.4,0.1152]
[1755741676981,0.02,4346.8,4346.5,3.616]
[1755741677184,0.02,4346.8,4346.0,0.17545714]
[1755741677185,0.0385,4346.5,4346.0,0.17545714]
[1755741677386,0.0385,4346.5,4346.1,3.615]
[1755741677684,0.0385,4346.5,4346.0,0.17545714]
[1755741677685,15.87857445,4346.5,4346.0,0.17545714]
[1755741677890,15.87857445,4346.5,4345.7,0.1152]
[1755741677891,15.84007445,4346.1,4345.9,3.618]
[1755741678074,0.0385,4346.0,4345.6,3.618]
[1755741678274,15.84007445,4345.7,4345.6,3.618]
[1755741678474,15.84007445,4345.7,4344.9,0.4462]
[1755741678475,15.87857445,4345.7,4344.9,0.4462]
[1755741678699,15.87857445,4345.7,4344.3,0.001]
[1755741678700,15.84007445,4345.3,4344.3,0.001]
[1755741678859,15.87857445,4344.9,4344.8,3.639]
[1755741679356,15.87857445,4344.9,4344.8,0.021]
[1755741679584,18.90267445,4344.9,4344.8,0.021]
[1755741680057,19.56267445,4344.9,4344.8,0.021]
[1755741680488,20.05904702,4344.9,4344.8,0.021]
[1755741681768,20.05904702,4344.9,4344.3,0.001]
[1755741681769,3.66,4344.8,4344.3,0.001]
[1755741681966,3.66,4344.3,4343.9,0.001]
[1755741682161,19.53857445,4344.0,4343.9,0.001]
[1755741682809,19.56267445,4344.0,4343.9,0.001]
[1755741683981,3.0385,4344.0,4343.9,0.001]
[1755741684186,3.0,4344.0,4343.9,0.001]
[1755741684408,3.618,4344.7,4343.9,0.001]
[1755741684582,15.84007445,4344.5,4343.9,0.001]
[1755741684786,3.0,4344.4,4343.9,0.001]
[1755741685208,0.66,4345.2,4343.9,0.001]
[1755741685209,3.617,4344.7,4343.9,0.001]
[1755741685504,3.0,4344.8,4343.9,0.001]
[1755741685505,6.617,4344.8,4343.9,0.001]
[1755741685809,3.617,4345.3,4344.0,0.4462]
[1755741686012,3.617,4345.5,4344.1,0.02301972]
[1755741686183,15.84007445,4345.7,4344.0,0.4462]
[1755741686385,3.619,4345.6,4344.1,0.02301972]
[1755741686584,3.619,4345.6,4344.2,0.4462]
[1755741687097,0.1152,4345.0,4344.4,0.1152]
[1755741687283,0.02,4345.8,4344.9,0.3108]
[1755741687482,0.1152,4345.2,4344.5,0.4462]
[1755741688031,0.1152,4344.6,4343.9,0.4472]
[1755741688485,0.1152,4344.2,4344.0,0.02302025]
[1755741688817,0.1152,4344.2,4344.1,0.757]
[1755741689841,15.84007445,4346.0,4344.1,0.757]
[1755741689984,0.1152,4344.7,4344.2,0.4462]
[1755741690278,0.1152,4344.7,4344.6,0.3108]
[1755741690479,0.1152,4344.7,4344.6,0.757]
[1755741690683,0.02,4345.8,4344.6,0.757]
[1755741690916,0.1152,4345.2,4344.7,4.08721654]
[1755741691229,0.02,4345.8,4345.1,0.3108]
[1755741691523,0.1352,4345.8,4345.2,0.0230139]
[1755741691813,0.1352,4345.8,4345.7,0.3108]
[1755741692003,0.1352,4345.8,4345.7,0.757]
[1755741692204,0.1352,4345.8,4345.7,0.4462]
[1755741692927,0.1352,4345.8,4345.1,0.2504]
[1755741693132,0.1352,4345.8,4345.2,0.4462]
[1755741693301,0.1352,4345.8,4345.3,0.02301337]
[1755741693503,0.1352,4345.8,4345.4,0.4462]
[1755741693828,0.1352,4345.8,4345.2,0.43126]
[1755741694131,0.1352,4345.8,4345.1,3.7312]
[1755741694334,0.02,4345.8,4344.9,3.614]
[1755741694496,0.1152,4345.3,4344.9,3.614]
[1755741694697,0.1152,4345.3,4344.9,4.0602]
[1755741694902,0.1152,4345.3,4344.9,0.4462]
[1755741695505,0.02,4345.8,4344.8,0.001]
[1755741695707,0.1152,4345.0,4344.8,0.001]
[1755741697248,0.0385,4344.9,4344.8,0.001]
[1755741698613,0.1152,4345.0,4344.8,0.001]
[1755741700865,0.0385,4344.9,4344.8,0.001]
[1755741701025,3.0385,4344.9,4344.8,0.001]
[1755741702958,0.0385,4344.9,4344.8,0.001]
[1755741703156,0.02,4345.8,4344.8,0.001]
[1755741703532,0.68,4345.8,4344.8,0.001]
[1755741704122,0.02,4345.8,4344.8,0.001]
[1755741704325,0.02,4345.8,4345.7,0.3075]
[1755741704560,0.02,4345.8,4345.7,0.7714]
[1755741705628,0.02,4345.8,4345.7,19.24287933]
[1755741705866,0.02,4345.8,4345.7,19.21986808]
[1755741706359,0.02,4345.8,4345.7,16.91874283]
[1755741707063,0.02,4345.8,4345.7,19.21986808]
[1755741707453,0.02,4345.8,4345.7,1.07866838]
[1755741707966,0.02,4345.8,4345.5,3.611]
[1755741708280,0.02,4345.8,4345.7,0.3075]
[1755741708479,0.02,4345.8,4345.7,0.33051125]
[1755741708777,0.02,4345.8,4345.7,0.7714]
[1755741709966,0.02,4345.8,4345.7,0.79441125]
[1755741710173,0.02,4345.8,4345.7,5.78008507]
[1755741710381,0.02,4345.8,4345.7,5.84930382]
[1755741711080,0.02,4345.8,4345.7,5.96450382]
[1755741712492,0.02,4345.8,4345.7,3.66337857]
[1755741712692,0.02,4345.8,4345.7,7.55095525]
[1755741715702,0.02,4345.8,4345.7,5.24983]
[1755741715865,0.02,4345.8,4345.7,3.7232]
[1755741716064,0.02,4345.8,4345.7,3.74621125]
[1755741716259,0.02,4345.8,4345.7,4.51761125]
[1755741716460,0.02,4345.8,4345.7,4.97859657]
[1755741716688,0.02,4345.8,4345.7,4.95558532]
[1755741716993,0.0605,4345.8,4345.7,3.608]
[1755741717355,0.0605,4345.8,4345.3,0.1152]
[1755741717616,0.022,4345.8,4345.4,4.0709]
[1755741718059,0.022,4345.8,4345.4,3.607]
[1755741720597,0.0385,4345.5,4345.3,0.1152]
[1755741720756,0.0385,4345.5,4345.1,0.1152]
[1755741721161,0.1152,4345.2,4344.8,3.609]
[1755741721808,0.1152,4345.2,4344.9,0.02301548]
[1755741722164,0.1152,4345.5,4345.0,0.4639]
[1755741722976,0.1152,4345.5,4344.8,3.7242]
[1755741723264,0.1152,4345.5,4344.9,0.48691548]
[1755741723462,0.1152,4345.5,4344.8,3.7242]
[1755741723463,0.1152,4345.5,4344.8,0.1162]
[1755741723780,0.1152,4345.1,4344.9,3.62901548]
[1755741723986,0.1152,4345.5,4345.0,0.7714]
[1755741724285,0.1152,4345.5,4345.1,0.48691443]
[1755741724670,0.1152,4345.5,4344.9,3.98052155]
[1755741724671,0.022,4345.8,4345.4,0.3075]
[1755741724875,0.022,4345.8,4345.5,3.607]
[1755741725180,0.022,4345.8,4345.5,4.0709]
[1755741725382,0.0385,4345.6,4345.5,3.607]
[1755741725589,0.1537,4345.6,4345.5,3.607]
[1755741726802,0.1152,4345.6,4344.8,0.02401601]
[1755741726966,0.1152,4345.6,4344.9,4.09391548]
[1755741727169,0.1152,4345.6,4345.0,0.98859155]
[1755741727362,0.1152,4345.6,4345.1,0.02301443]
[1755741727694,0.1152,4345.6,4345.2,0.4639]
[1755741727858,0.1152,4345.6,4345.3,0.02301337]
[1755741728063,0.1152,4345.6,4344.8,0.001]
[1755741728064,0.0385,4345.4,4344.8,3.606]
[1755741728260,0.1152,4345.3,4344.9,0.02301548]
[1755741728464,0.1152,4345.3,4344.8,3.606]
[1755741728465,0.1152,4345.0,4344.8,3.606]
[1755741728865,0.1152,4345.0,4344.8,4.0699]
[1755741729078,0.1152,4345.0,4344.8,4.09291601]
[1755741730003,0.1152,4345.4,4344.9,1.1922116]
[1755741730204,0.022,4345.8,4345.0,0.4639]
[1755741730386,0.022,4345.8,4345.2,0.1152]
[1755741730589,0.022,4345.8,4345.7,0.3075]
[1755741730811,0.022,4345.8,4345.7,0.8866]
[1755741730974,0.002,4346.3,4345.7,0.8866]
[1755741731320,0.002,4346.3,4346.2,0.1152]
[1755741731605,0.002,4346.3,4346.2,0.4192]
[1755741731812,0.002,4346.3,4346.2,2.49192744]
[1755741731975,0.002,4346.3,4346.2,6.12393604]
[1755741732178,0.002,4346.3,4346.2,6.27544373]
[1755741734884,0.002,4346.3,4346.2,11.57630425]
[1755741735109,0.002,4346.3,4346.2,9.27544373]
[1755741735480,0.002,4346.3,4346.2,11.57630425]
[1755741735677,0.002,4346.3,4346.2,9.27544373]
[1755741736289,0.002,4346.3,4346.2,9.27144373]
[1755741736493,0.002,4346.3,4346.2,4.64351629]
[1755741737316,0.002,4346.3,4346.2,1.04051629]
[1755741737481,0.002,4346.3,4346.2,4.73474929]
[1755741739020,0.002,4346.3,4346.2,4.75775789]
[1755741739616,0.002,4346.3,4346.2,4.73474929]
[1755741739916,0.002,4346.3,4346.2,7.11524026]
[1755741740218,0.002,4346.3,4346.2,7.09223166]
[1755741740715,0.002,4346.3,4346.2,3.49023166]
[1755741741017,0.002,4346.3,4346.2,3.98294929]
[1755741741394,0.002,4346.3,4346.2,3.97994929]
[1755741742319,0.0757,4346.3,4346.2,3.598]
[1755741743590,0.002,4346.3,4346.2,3.598]
[1755741743899,0.0757,4346.3,4344.8,0.4678]
[1755741744099,0.1152,4345.8,4345.0,3.597]
[1755741744299,0.0481,4346.3,4345.3,0.1152]
[1755741744515,0.1152,4345.5,4345.4,3.61901284]
[1755741744687,0.1152,4345.5,4345.4,3.596]
[1755741746339,0.1152,4345.9,4345.4,4.36981284]
[1755741746533,0.1152,4345.9,4345.4,4.80452738]
[1755741747844,0.1152,4345.9,4345.3,0.1152]
[1755741747845,0.0737,4345.5,4345.3,0.1152]
[1755741748006,0.0737,4345.5,4344.8,0.021]
[1755741748338,0.1152,4345.4,4344.9,3.595]
[1755741748535,0.1152,4345.0,4344.9,3.595]
[1755741750505,0.1152,4345.0,4344.8,0.021]
[1755741750713,0.1889,4345.0,4344.8,0.021]
[1755741751276,0.046,4344.9,4344.8,0.021]
[1755741751405,0.1197,4344.9,4344.8,0.021]
[1755741751608,0.7797,4344.9,4344.8,0.021]